fUST/lending_fUST_20260308
["ID","MTS","AMOUNT","RATE_DAILY","PERIOD"]
[407908543,1772909442942,-587.0,4.234e-05,2]
[407908545,1772909442952,-250.0,4.42e-05,2]
[407908547,1772909442961,-720.0,4.487e-05,2]
[407908549,1772909442970,-480.0,4.657e-05,2]
[407908551,1772909442980,-864.0,4.936e-05,2]
[407908553,1772909442989,-500.0,5e-05,2]
[407908555,1772909442998,-500.0,5e-05,2]
[407908557,1772909443007,-500.0,5e-05,2]
[407908559,1772909443016,-347.98871345,5e-05,2]
[407908561,1772909443025,-500.0,5e-05,2]
[407908563,1772909443035,-500.0,5e-05,2]
[407908565,1772909443044,-500.0,5e-05,2]
[407908567,1772909443053,-500.0,5e-05,2]
[407908569,1772909443062,-500.0,5e-05,2]
[407908571,1772909443071,-500.0,5e-05,2]
[407908574,1772909443080,-500.0,5e-05,2]
[407908576,1772909443089,-500.0,5e-05,2]
[407908580,1772909443099,-500.0,5e-05,2]
[407908582,1772909443109,-500.0,5e-05,2]
[407908583,1772909443118,-500.0,5e-05,2]
[407908585,1772909443128,-500.0,5e-05,2]
[407908587,1772909443137,-500.0,5e-05,2]
[407908589,1772909443146,-500.0,5e-05,2]
[407908591,1772909443156,-500.0,5e-05,2]
[407908593,1772909443165,-500.0,5e-05,2]
[407908595,1772909443175,-500.0,5e-05,2]
[407908597,1772909443184,-500.0,5e-05,2]
[407908599,1772909443193,-383.80956969,5e-05,2]
[407908602,1772909443210,-116.19043031,5e-05,2]
[407908604,1772909443219,-298.35453673,5e-05,2]
[407908606,1772909443228,-500.0,5e-05,2]
[407908608,1772909443237,-500.0,5e-05,2]
[407908610,1772909443246,-170.0,5e-05,2]
[407908612,1772909443258,-1000.0,5.429e-05,2]
[407908614,1772909443268,-300.0,5.479e-05,2]
[407908616,1772909443277,-4983.8347378,5.561e-05,2]
[407908618,1772909443286,-161.31399344,5.844e-05,2]
[407908620,1772909443295,-1000.0,5.972e-05,2]
[407908622,1772909443305,-244.0,5.972e-05,2]
[407908624,1772909443315,-672.0,6.569e-05,2]
[407908626,1772909443324,-275.24,7.382e-05,2]
[407908628,1772909443333,-247.70741814,7.422e-05,2]
[407908630,1772909443343,-3462.00693296,8.188e-05,2]
[407908632,1772909443356,-927.1608562,8.188e-05,2]
[407908635,1772909443371,-1954.0,8.188e-05,2]
[407908637,1772909443383,-778.35359997,8.188e-05,2]
[407908639,1772909443394,-2466.59604025,8.188e-05,2]
[407908641,1772909443403,-101.57395975,8.672e-05,2]
[407908643,1772909443415,-59.7400337,8.672e-05,2]
[407908645,1772909443425,-2543.64688429,8.973e-05,2]
[407908647,1772909443435,-280.49222348,9.422e-05,2]
[407908649,1772909443444,-982.37078532,0.0001,2]
[407908672,1772909446142,-610.99505787,0.0001,2]
[407908673,1772909446156,-2782.3134029,0.0001,2]
[407908674,1772909446167,-250.54154872,0.00010959,2]
[407908675,1772909446179,-151.0,0.00011,2]
[407908676,1772909446190,-151.0,0.00011,2]
[407908677,1772909446202,-151.0,0.00011,2]
[407908678,1772909446215,-151.0,0.00011,2]
[407908679,1772909446227,-151.0,0.00011,2]
[407908680,1772909446240,-151.0,0.00011,2]
[407908681,1772909446252,-313.27702883,0.00011422,2]
[407908682,1772909446263,-404.66908658,0.00011659,2]
[407908683,1772909449404,151.0,0.000114,120]
[407908684,1772909482745,151.0,0.000114,120]
[407908685,1772909513638,151.0,0.000114,120]
[407908686,1772909552832,151.0,0.000114,120]
[407908687,1772909589626,151.0,0.000114,120]
[407908688,1772909624001,151.0,0.000114,120]
[407908690,1772909659107,151.0,0.000114,120]
[407908691,1772909699909,151.0,0.000114,120]
[407908692,1772909730856,151.0,0.000114,120]
[407908693,1772909769754,151.0,0.000114,120]
[407908694,1772909802557,151.0,0.000114,120]
[407908695,1772909839587,151.0,0.000114,120]
[407908696,1772909879381,151.0,0.000114,120]
[407908699,1772909922193,151.0,0.000114,120]
[407908700,1772909970306,151.0,0.000114,120]
[407908701,1772910002083,151.0,0.000114,120]
[407908702,1772910002351,156.55,2e-05,2]
[407908703,1772910002659,156.55,2e-05,2]
[407908704,1772910003006,156.55,2e-05,2]
[407908705,1772910003352,156.55,2e-05,2]
[407908706,1772910003632,156.55,2e-05,2]
[407908707,1772910003904,156.55,2e-05,2]
[407908708,1772910004181,156.55,2e-05,2]
[407908709,1772910004474,156.55,2e-05,2]
[407908710,1772910032530,151.0,0.000114,120]
[407908711,1772910072713,151.0,0.000114,120]
[407908712,1772910112660,151.0,0.000114,120]
[407908713,1772910143219,151.0,0.000114,120]
[407908715,1772910175228,151.0,0.000114,120]
[407908716,1772910219265,151.0,0.000114,120]
[407908717,1772910251965,151.0,0.000114,120]
[407908721,1772910298508,151.0,0.000114,120]
[407908723,1772910331851,151.0,0.000114,120]
[407908725,1772910370449,151.0,0.000114,120]
[407908728,1772910419233,151.0,0.000114,120]
[407908729,1772910456488,151.0,0.000114,120]
[407908730,1772910490362,151.0,0.000114,120]
[407908731,1772910538863,151.0,0.000114,120]
[407908732,1772910569917,151.0,0.000114,120]
[407908733,1772910603121,151.0,0.000114,120]
[407908760,1772910631924,-1259.76777739,4.424e-05,2]
[407908762,1772910631937,-3041.47195533,4.424e-05,2]
[407908795,1772910638000,-698.76026728,4.424e-05,2]
[407908797,1772910638009,-3493.00901458,4.6e-05,2]
[407908799,1772910638018,-5105.93789835,4.6e-05,2]
[407908800,1772910638030,-2252.75887861,4.6e-05,2]
[407908802,1772910638039,-8663.72028154,4.6e-05,2]
[407908804,1772910638049,-222.47149368,4.652e-05,2]
[407908806,1772910638058,-1101099.19072281,4.7e-05,2]
[407908855,1772910638945,-125790.77413987,4.7e-05,2]
[407908856,1772910638957,-2774.43317455,4.7e-05,2]
[407908871,1772910639681,151.0,0.000114,120]
[407909137,1772910643076,-701.62763894,4.653e-05,2]
[407909138,1772910643088,-771.14628782,4.653e-05,2]
[407909139,1772910643101,-493.6422938,4.653e-05,2]
[407909140,1772910643124,-3033.58377944,4.653e-05,2]
[407909141,1772910643144,-38085.22797981,4.7e-05,2]
[407909142,1772910643158,-28688.66882499,4.7e-05,2]
[407909143,1772910643173,-3795.1,4.7e-05,2]
[407909144,1772910643187,-1283.82286199,4.7e-05,2]
[407909145,1772910643199,-1316.27915126,4.7e-05,2]
[407909146,1772910643212,-361.0,4.7e-05,2]
[407909147,1772910643225,-274.6353357,4.7e-05,2]
[407909148,1772910643238,-1382.8,4.7e-05,2]
[407909149,1772910643251,-318.84759742,4.7e-05,2]
[407909150,1772910643265,-3174.77063615,4.7e-05,2]
[407909161,1772910645942,-400.0,4.7e-05,2]
[407909170,1772910679777,151.0,0.000114,120]
[407909171,1772910712604,151.0,0.000114,120]
[407909172,1772910749489,151.0,0.000114,120]
[407909173,1772910782468,151.0,0.000114,120]
[407909174,1772910813699,151.0,0.000114,120]
[407909176,1772910861910,151.0,0.000114,120]
[407909178,1772910905289,151.0,0.000114,120]
[407909179,1772910942621,151.0,0.000114,120]
[407909181,1772910986489,151.0,0.000114,120]
[407909183,1772911032803,151.0,0.000114,120]
[407909184,1772911082396,151.0,0.000114,120]
[407909185,1772911122410,151.0,0.000114,120]
[407909186,1772911166006,151.0,0.000114,120]
[407909188,1772911203230,151.0,0.000114,120]
[407909189,1772911234214,151.0,0.000114,120]
[407909190,1772911275248,151.0,0.000114,120]
[407909191,1772911313036,151.0,0.000114,120]
[407909265,1772911360410,151.0,0.000114,120]
[407909268,1772911399851,151.0,0.000114,120]
[407909269,1772911442125,151.0,0.000114,120]
[407909270,1772911473501,151.0,0.000114,120]
[407909271,1772911503581,151.0,0.000114,120]
[407909272,1772911540008,151.0,0.000114,120]
[407909273,1772911579259,151.0,0.000114,120]
[407909275,1772911613005,151.0,0.000114,120]
[407909360,1772911824157,-2187.88356387,3.541e-05,2]
[407909382,1772911832042,-415.0949998,3.541e-05,2]
[407909385,1772911832053,-2397.02143633,3.541e-05,2]
[407909387,1772911832062,-195.17126479,3.627e-05,2]
[407909388,1772911832072,-1200.0,3.723e-05,2]
[407909390,1772911832081,-300.0,3.724e-05,2]
[407909392,1772911832090,-300.0,3.724e-05,2]
[407909394,1772911832100,-300.0,3.724e-05,2]
[407909396,1772911832108,-9.36565585,3.724e-05,2]
[407909398,1772911832122,-156.63434415,3.724e-05,2]
[407909400,1772911832131,-300.0,3.724e-05,2]
[407909402,1772911832140,-5751.8456483,3.726e-05,2]
[407909404,1772911832151,-1200.0,4.095e-05,2]
[407909406,1772911832163,-308.0,4.096e-05,2]
[407909408,1772911832172,-420.0,4.096e-05,2]
[407909410,1772911832181,-420.0,4.096e-05,2]
[407909412,1772911832191,-420.0,4.096e-05,2]
[407909413,1772911832200,-518.8619908,4.3e-05,2]
[407909627,1772911836685,-507.23600685,4.257e-05,2]
[407909628,1772911836697,-1292.72888236,4.257e-05,2]
[407909629,1772911836710,-2910.35559059,4.257e-05,2]
[407909669,1772911838275,-289.6795202,4.257e-05,2]
[407909671,1772911838284,-4.00520543,4.3e-05,2]
[407909673,1772911838294,-804.3621606,4.4e-05,2]
[407909675,1772911838303,-2117.70815627,4.4e-05,2]
[407909677,1772911838312,-511.80616934,4.4e-05,2]
[407909679,1772911838322,-4124.30473599,4.4e-05,2]
[407909681,1772911838332,-18007.26963415,4.4e-05,2]
[407909683,1772911838343,-414.06079803,4.4e-05,2]
[407909685,1772911838354,-310.42668819,4.4e-05,2]
[407909688,1772911838366,-404.739,4.4e-05,2]
[407909690,1772911838377,-49509.26793128,4.4e-05,2]
[407909836,1772911842592,-6740.75757516,4.356e-05,2]
[407909842,1772911842647,-603.519,4.356e-05,2]
[407909844,1772911842658,-1288.78499993,4.356e-05,2]
[407909928,1772911843294,-2709.66131519,4.356e-05,2]
[407909934,1772911843350,-1738.99624944,4.356e-05,2]
[407910198,1772911846150,-138469.40023698,4.356e-05,2]
[407910199,1772911846206,-3906.88525155,4.356e-05,2]
[407910200,1772911846218,-11347.73998644,4.356e-05,2]
[407910205,1772911912413,-119844.64513031,0.00036609,120]
[407910206,1772911912472,-500.0,0.00036609,120]
[407910207,1772911912530,-500.0,0.00036609,120]
[407910208,1772911912585,-500.0,0.00036609,120]
[407910209,1772911912642,-500.0,0.00036609,120]
[407910210,1772911912697,-500.0,0.00036609,120]
[407910211,1772911912751,-500.0,0.00036609,120]
[407910212,1772911912803,-500.0,0.00036609,120]
[407910213,1772911912858,-500.0,0.00036609,120]
[407910214,1772911912920,-500.0,0.00036609,120]
[407910215,1772911912994,-519.86956634,0.00036609,120]
[407910216,1772911913053,-505.23,0.00036609,120]
[407910217,1772911913113,-500.0,0.00036609,120]
[407910218,1772911913169,-500.0,0.00036609,120]
[407910219,1772911913234,-500.0,0.00036609,120]
[407910220,1772911913289,-500.0,0.00036609,120]
[407910221,1772911913349,-500.0,0.00036609,120]
[407910222,1772911913408,-438.54,0.00036609,120]
[407910223,1772911913466,-346.1383334,0.00036609,120]
[407910224,1772911913516,-500.0,0.00036609,120]
[407910225,1772911913562,-500.0,0.00036609,120]
[407910226,1772911913611,-500.0,0.00036609,120]
[407910227,1772911913663,-500.20472437,0.00036609,120]
[407910228,1772911913720,-500.0,0.00036609,120]
[407910229,1772911913774,-500.0,0.00036609,120]
[407910230,1772911913824,-500.0,0.00036609,120]
[407910231,1772911913872,-500.0,0.00036609,120]
[407910232,1772911913924,-582.22,0.00036609,120]
[407910233,1772911913972,-500.0,0.00036609,120]
[407910234,1772911914021,-500.0,0.00036609,120]
[407910235,1772911914070,-500.0,0.00036609,120]
[407910236,1772911914119,-406.98,0.00036609,120]
[407910237,1772911914168,-500.52578523,0.00036609,120]
[407910238,1772911914224,-500.85180517,0.00036609,120]
[407910239,1772911914274,-500.0,0.00036609,120]
[407910240,1772911914323,-427.61,0.00036609,120]
[407910241,1772911914373,-500.88842617,0.00036609,120]
[407910242,1772911914423,-500.0,0.00036609,120]
[407910243,1772911914475,-500.67104752,0.00036609,120]
[407910244,1772911914527,-500.0,0.00036609,120]
[407910245,1772911914577,-172.07,0.00036609,120]
[407910246,1772911914628,-526.2219986,0.00036609,120]
[407910247,1772911914680,-500.0,0.00036609,120]
[407910248,1772911914731,-500.0,0.00036609,120]
[407910249,1772911914780,-500.0,0.00036609,120]
[407910250,1772911914828,-500.0,0.00036609,120]
[407910251,1772911914880,-500.0,0.00036609,120]
[407910252,1772911914933,-500.0,0.00036609,120]
[407910253,1772911914984,-500.0,0.00036609,120]
[407910254,1772911915029,-500.0,0.00036609,120]
[407910255,1772911915072,-259.05201363,0.00036609,120]
[407910256,1772911915115,-500.0,0.00036609,120]
[407910257,1772911915160,-492.77,0.00036609,120]
[407910258,1772911915211,-500.0,0.00036609,120]
[407910259,1772911915258,-465.54079597,0.00036609,120]
[407910260,1772911915303,-500.0,0.00036609,120]
[407910261,1772911915349,-500.0,0.00036609,120]
[407910262,1772911915394,-500.0,0.00036609,120]
[407910263,1772911915439,-500.0,0.00036609,120]
[407910264,1772911915481,-535.13,0.00036609,120]
[407910265,1772911915520,-501.98423047,0.00036609,120]
[407910266,1772911915560,-500.0,0.00036609,120]
[407910267,1772911915599,-500.0,0.00036609,120]
[407910268,1772911915638,-500.0,0.00036609,120]
[407910269,1772911915679,-239.66,0.00036609,120]
[407910270,1772911915718,-500.0,0.00036609,120]
[407910271,1772911915756,-500.0,0.00036609,120]
[407910272,1772911915795,-500.0,0.00036609,120]
[407910273,1772911915833,-500.0,0.00036609,120]
[407910274,1772911915870,-297.23,0.00036609,120]
[407910275,1772911915907,-500.0,0.00036609,120]
[407910276,1772911915946,-500.0,0.00036609,120]
[407910277,1772911915983,-500.0,0.00036609,120]
[407910278,1772911916022,-500.0,0.00036609,120]
[407910279,1772911916060,-500.0,0.00036609,120]
[407910280,1772911916840,-500.0,0.00036609,120]
[407910281,1772911916878,-500.0,0.00036609,120]
[407910282,1772911916913,-500.0,0.00036609,120]
[407910283,1772911916946,-280.52,0.00036609,120]
[407910284,1772911916980,-500.0,0.00036609,120]
[407910285,1772911917013,-500.0,0.00036609,120]
[407910286,1772911917048,-500.0,0.00036609,120]
[407910287,1772911917083,-500.0,0.00036609,120]
[407910288,1772911917120,-500.0,0.00036609,120]
[407910289,1772911917157,-288.65,0.00036609,120]
[407910290,1772911917193,-500.0,0.00036609,120]
[407910291,1772911917230,-500.0,0.00036609,120]
[407910292,1772911917268,-500.0,0.00036609,120]
[407910293,1772911917308,-500.0,0.00036609,120]
[407910294,1772911917347,-500.0,0.00036609,120]
[407910295,1772911917384,-500.0,0.00036609,120]
[407910296,1772911917423,-500.0,0.00036609,120]
[407910297,1772911917459,-500.0,0.00036609,120]
[407910298,1772911917495,-280.09,0.00036609,120]
[407910299,1772911917531,-500.0,0.00036609,120]
[407910300,1772911917564,-500.0,0.00036609,120]
[407910301,1772911917597,-596.4,0.00036609,120]
[407910302,1772911917631,-500.0,0.00036609,120]
[407910303,1772911917665,-500.0,0.00036609,120]
[407910304,1772911917699,-500.0,0.00036609,120]
[407910305,1772911917733,-500.0,0.00036609,120]
[407910306,1772911917765,-613.26,0.00036609,120]
[407910307,1772911917798,-500.0,0.00036609,120]
[407910308,1772911917831,-362.03,0.00036609,120]
[407910309,1772911917863,-500.0,0.00036609,120]
[407910310,1772911917896,-500.0,0.00036609,120]
[407910311,1772911917929,-625.81,0.00036609,120]
[407910312,1772911917962,-197.9,0.00036609,120]
[407910313,1772911917995,-500.0,0.00036609,120]
[407910314,1772911918030,-500.0,0.00036609,120]
[407910315,1772911918065,-500.0,0.00036609,120]
[407910316,1772911918100,-500.0,0.00036609,120]
[407910317,1772911918137,-500.0,0.00036609,120]
[407910318,1772911918175,-500.0,0.00036609,120]
[407910319,1772911918213,-414.86,0.00036609,120]
[407910320,1772911918249,-500.0,0.00036609,120]
[407910321,1772911918285,-512.68865,0.00036609,120]
[407910322,1772911918323,-500.0,0.00036609,120]
[407910323,1772911918363,-500.0,0.00036609,120]
[407910324,1772911918400,-629.98,0.00036609,120]
[407910325,1772911918439,-500.0,0.00036609,120]
[407910326,1772911918476,-500.0,0.00036609,120]
[407910327,1772911918516,-452.55,0.00036609,120]
[407910328,1772911918554,-500.0,0.00036609,120]
[407910329,1772911918591,-215.32,0.00036609,120]
[407910330,1772911918626,-500.0,0.00036609,120]
[407910331,1772911918661,-500.0,0.00036609,120]
[407910332,1772911918696,-548.5,0.00036609,120]
[407910333,1772911918730,-500.0,0.00036609,120]
[407910334,1772911918765,-500.0,0.00036609,120]
[407910335,1772911918801,-500.0,0.00036609,120]
[407910336,1772911918837,-500.0,0.00036609,120]
[407910337,1772911918872,-500.0,0.00036609,120]
[407910338,1772911918907,-405.3937,0.00036609,120]
[407910339,1772911918942,-5766.11,0.00036609,120]
[407910340,1772911918977,-5766.11,0.00036609,120]
[407910341,1772911919011,-5766.11,0.00036609,120]
[407910342,1772911919046,-5766.11,0.00036609,120]
[407910343,1772911919082,-5766.11,0.00036609,120]
[407910344,1772911919120,-5766.11,0.00036609,120]
[407910345,1772911919158,-5766.11,0.00036609,120]
[407910346,1772911919198,-5766.11,0.00036609,120]
[407910347,1772911919237,-5766.11,0.00036609,120]
[407910348,1772911919275,-5766.11,0.00036609,120]
[407910349,1772911919313,-5766.11,0.00036609,120]
[407910350,1772911919351,-5766.11,0.00036609,120]
[407910351,1772911919388,-5766.11,0.00036609,120]
[407910352,1772911919427,-5766.11,0.00036609,120]
[407910353,1772911919468,-5766.11,0.00036609,120]
[407910354,1772911919509,-5766.11,0.00036609,120]
[407910355,1772911919548,-5766.11,0.00036609,120]
[407910356,1772911919587,-5766.11,0.00036609,120]
[407910357,1772911919625,-5766.11,0.00036609,120]
[407910358,1772911919661,-5766.11,0.00036609,120]
[407910359,1772911919698,-5766.11,0.00036609,120]
[407910360,1772911919735,-5766.11,0.00036609,120]
[407910361,1772911920544,-5766.11,0.00036609,120]
[407910362,1772911920589,-5766.16984305,0.00036609,120]
[407910363,1772911920632,-12624.29,0.00036609,120]
[407910364,1772911920679,-12624.29,0.00036609,120]
[407910365,1772911920724,-12624.29,0.00036609,120]
[407910366,1772911920762,-12624.29,0.00036609,120]
[407910367,1772911920806,-12624.29,0.00036609,120]
[407910368,1772911920850,-12624.29,0.00036609,120]
[407910369,1772911920891,-12624.29,0.00036609,120]
[407910370,1772911920928,-12624.29,0.00036609,120]
[407910371,1772911920968,-12624.29,0.00036609,120]
[407910372,1772911921006,-12624.29,0.00036609,120]
[407910373,1772911921045,-12624.29,0.00036609,120]
[407910374,1772911921083,-12624.29,0.00036609,120]
[407910375,1772911921119,-12624.29,0.00036609,120]
[407910376,1772911921156,-12624.29,0.00036609,120]
[407910377,1772911921193,-12624.29,0.00036609,120]
[407910378,1772911921235,-12624.29,0.00036609,120]
[407910379,1772911921277,-12624.29,0.00036609,120]
[407910380,1772911921321,-12624.29,0.00036609,120]
[407910381,1772911921364,-12624.29,0.00036609,120]
[407910382,1772911921404,-12624.29,0.00036609,120]
[407910383,1772911921443,-12624.29,0.00036609,120]
[407910384,1772911921481,-12624.29,0.00036609,120]
[407910385,1772911921521,-12624.29,0.00036609,120]
[407910386,1772911921560,-12624.33,0.00036609,120]
[407910387,1772911921598,-24011.51,0.00036609,120]
[407910388,1772911921635,-24011.51,0.00036609,120]
[407910389,1772911921671,-24011.51,0.00036609,120]
[407910390,1772911921707,-24011.51,0.00036609,120]
[407910391,1772911921744,-24011.51,0.00036609,120]
[407910392,1772911921781,-24011.51,0.00036609,120]
[407910393,1772911921817,-24011.51,0.00036609,120]
[407910394,1772911921852,-24011.51,0.00036609,120]
[407910395,1772911921888,-24011.51,0.00036609,120]
[407910396,1772911921925,-24011.51,0.00036609,120]
[407910397,1772911921962,-24011.51,0.00036609,120]
[407910398,1772911922002,-24011.51,0.00036609,120]
[407910399,1772911922040,-24011.51,0.00036609,120]
[407910400,1772911922078,-24011.51,0.00036609,120]
[407910401,1772911922118,-24011.51,0.00036609,120]
[407910402,1772911922159,-24011.51,0.00036609,120]
[407910403,1772911922202,-24011.51,0.00036609,120]
[407910404,1772911922244,-24011.51,0.00036609,120]
[407910405,1772911922291,-24011.51,0.00036609,120]
[407910406,1772911922342,-24011.51,0.00036609,120]
[407910407,1772911922390,-24011.51,0.00036609,120]
[407910408,1772911922430,-24011.51,0.00036609,120]
[407910409,1772911922469,-24011.51,0.00036609,120]
[407910410,1772911922509,-24011.73038502,0.00036609,120]
[407910411,1772911922549,-500.0,0.00036609,120]
[407910412,1772911922590,-500.0,0.00036609,120]
[407910413,1772911922630,-500.0,0.00036609,120]
[407910414,1772911922670,-500.0,0.00036609,120]
[407910415,1772911922709,-500.0,0.00036609,120]
[407910416,1772911922746,-500.0,0.00036609,120]
[407910417,1772911922783,-500.0,0.00036609,120]
[407910418,1772911922819,-500.0,0.00036609,120]
[407910419,1772911922855,-500.0,0.00036609,120]
[407910420,1772911922891,-500.0,0.00036609,120]
[407910421,1772911922927,-500.0,0.00036609,120]
[407910422,1772911922963,-500.0,0.00036609,120]
[407910423,1772911922999,-500.0,0.00036609,120]
[407910424,1772911923035,-500.0,0.00036609,120]
[407910425,1772911923073,-500.0,0.00036609,120]
[407910426,1772911923115,-500.0,0.00036609,120]
[407910427,1772911923161,-557.63049839,0.00036609,120]
[407910428,1772911923211,-6250.0,0.00036609,120]
[407910429,1772911923312,-6250.0,0.00036609,120]
[407910430,1772911923354,-6250.0,0.00036609,120]
[407910431,1772911923395,-6250.0,0.00036609,120]
[407910432,1772911923436,-6250.0,0.00036609,120]
[407910433,1772911923475,-6250.0,0.00036609,120]
[407910434,1772911923515,-6250.0,0.00036609,120]
[407910435,1772911923556,-6250.0,0.00036609,120]
[407910436,1772911923599,-6250.0,0.00036609,120]
[407910437,1772911923642,-6250.0,0.00036609,120]
[407910438,1772911923684,-6250.0,0.00036609,120]
[407910439,1772911923730,-6250.0,0.00036609,120]
[407910440,1772911923775,-6250.0,0.00036609,120]
[407910441,1772911923816,-6250.0,0.00036609,120]
[407910442,1772911923857,-6250.0,0.00036609,120]
[407910443,1772911923898,-6640.53,0.00036609,120]
[407910444,1772911923938,-6250.0,0.00036609,120]
[407910445,1772911923979,-6640.53,0.00036609,120]
[407910446,1772911924021,-6250.0,0.00036609,120]
[407910447,1772911924065,-6640.53,0.00036609,120]
[407910448,1772911924107,-6250.0,0.00036609,120]
[407910449,1772911924148,-6640.53,0.00036609,120]
[407910450,1772911924187,-6250.0,0.00036609,120]
[407910451,1772911924229,-6640.53,0.00036609,120]
[407910452,1772911924270,-6250.0,0.00036609,120]
[407910453,1772911924313,-6250.0,0.00036609,120]
[407910454,1772911924355,-6640.53,0.00036609,120]
[407910455,1772911924397,-6250.0,0.00036609,120]
[407910456,1772911924438,-6640.53,0.00036609,120]
[407910457,1772911924479,-6250.0,0.00036609,120]
[407910458,1772911924521,-6640.53,0.00036609,120]
[407910459,1772911924564,-6250.0,0.00036609,120]
[407910460,1772911924607,-6640.53,0.00036609,120]
[407910461,1772911924648,-6640.53,0.00036609,120]
[407910462,1772911924685,-6640.53,0.00036609,120]
[407910463,1772911924725,-6640.53,0.00036609,120]
[407910464,1772911924763,-6640.53,0.00036609,120]
[407910465,1772911924801,-6640.53,0.00036609,120]
[407910466,1772911924837,-6640.53,0.00036609,120]
[407910467,1772911924876,-6640.53,0.00036609,120]
[407910468,1772911924924,-6640.53,0.00036609,120]
[407910469,1772911924968,-6640.53,0.00036609,120]
[407910470,1772911925012,-6640.53,0.00036609,120]
[407910471,1772911925060,-6640.53,0.00036609,120]
[407910472,1772911925109,-6640.53,0.00036609,120]
[407910473,1772911925159,-6640.53,0.00036609,120]
[407910474,1772911925210,-6640.53,0.00036609,120]
[407910475,1772911925260,-6640.63905729,0.00036609,120]
[407910476,1772911925312,-6947.97,0.00036609,120]
[407910477,1772911925362,-6947.97,0.00036609,120]
[407910478,1772911925414,-6947.97,0.00036609,120]
[407910479,1772911925470,-6947.97,0.00036609,120]
[407910480,1772911925523,-6947.97,0.00036609,120]
[407910481,1772911925575,-6947.97,0.00036609,120]
[407910482,1772911925627,-6947.97,0.00036609,120]
[407910483,1772911925681,-6947.97,0.00036609,120]
[407910484,1772911925733,-6947.97,0.00036609,120]
[407910485,1772911925785,-6947.97,0.00036609,120]
[407910486,1772911925834,-6947.97,0.00036609,120]
[407910487,1772911925881,-6947.97,0.00036609,120]
[407910488,1772911925930,-6947.97,0.00036609,120]
[407910489,1772911925977,-6947.97,0.00036609,120]
[407910490,1772911926027,-6947.97,0.00036609,120]
[407910491,1772911926074,-6947.97,0.00036609,120]
[407910492,1772911926121,-6947.97,0.00036609,120]
[407910493,1772911926169,-6947.97,0.00036609,120]
[407910494,1772911926220,-6947.97,0.00036609,120]
[407910495,1772911926268,-6947.97,0.00036609,120]
[407910496,1772911926317,-6947.97,0.00036609,120]
[407910497,1772911926364,-6947.97,0.00036609,120]
[407910498,1772911926412,-6947.97,0.00036609,120]
[407910499,1772911926460,-6948.17186203,0.00036609,120]
[407910500,1772911926508,-5947.3,0.00036609,120]
[407910501,1772911926554,-5947.3,0.00036609,120]
[407910502,1772911926598,-5947.3,0.00036609,120]
[407910503,1772911926641,-5947.3,0.00036609,120]
[407910504,1772911926685,-5947.3,0.00036609,120]
[407910505,1772911926729,-5947.3,0.00036609,120]
[407910506,1772911926772,-5947.3,0.00036609,120]
[407910507,1772911926815,-5947.3,0.00036609,120]
[407910508,1772911926854,-5947.3,0.00036609,120]
[407910509,1772911926893,-5947.3,0.00036609,120]